[Event "RUDAR 1 IM 2022"]
[Site "Pozarevac"]
[Date "2022.04.01"]
[Round "9.2"]
[White "Bryakin, Mikhail"]
[Black "Spasic, Petar"]
[Result "1/2-1/2"]
[ECO "D76"]
[WhiteElo "2481"]
[BlackElo "2334"]
[Annotator "ChessBase"]
[PlyCount "241"]
[EventDate "2022.03.27"]
[EventType "tourn"]
[EventCountry "SRB"]
[SourceTitle "playchess.com"]
[Source "ChessBase"]
[SourceQuality "1"]
[TimeControl "40/5400+30:900+30"]

1. d4 {[%emt 0:00:03]} Nf6 {[%emt 0:00:06]} 2. c4 {[%emt 0:00:05]} g6 {[%emt 0:00:03]} 3. g3 {[%emt 0:00:18]} Bg7 {[%emt 0:00:07]} 4. Bg2 {[%emt 0:00:12]} d5 {[%emt 0:01:26]} 5. Nf3 {[%emt 0:00:54]} O-O {[%emt 0:00:11]} 6. O-O {[%emt 0:00:15]} Nc6 {[%emt 0:02:31]} 7. cxd5 {[%emt 0:05:07]} Nxd5 {[%emt 0:00:17]} 8. Nc3 {[%emt 0:00:17]} Nb6 {[%emt 0:01:43]} 9. e3 {[%emt 0:00:18]} Be6 {[%emt 0:06:29]} 10. b3 {[%emt 0:02:10]} a5 {[%emt 0:01:30]} 11. Ng5 {[%emt 0:03:25]} Bd7 {[%emt 0:03:15]} 12. Nge4 {[%emt 0:01:14]} e5 {[%emt 0:04:36]} 13. d5 {[%emt 0:02:54]} Nb4 {[%emt 0:00:06]} 14. Nc5 {[%emt 0:18:48]} e4 {[%emt 0:03:28]} 15. Bb2 {[%emt 0:00:21]} Bc8 {[%emt 0:29:27]} 16. N5xe4 {[%emt 0:09:33]} N6xd5 {[%emt 0:01:14]} 17. a3 {[%emt 0:03:46]} Nxc3 {[%emt 0:02:48]} 18. Bxc3 {[%emt 0:00:21]} Bxc3 {[%emt 0:00:40]} 19. Nxc3 {[%emt 0:02:15]} Na6 {[%emt 0:00:06]} 20. Qxd8 {[%emt 0:03:23]} Rxd8 {[%emt 0:00:22]} 21. Rfd1 {[%emt 0:00:05]} Re8 {[%emt 0:03:29]} 22. Nd5 {[%emt 0:04:21]} Kg7 {[%emt 0:00:04]} 23. Rac1 {[%emt 0:00:21]} c6 {[%emt 0:08:51]} 24. Nb6 {[%emt 0:00:22]} Rb8 {[%emt 0:00:03]} 25. Nc4 {[%emt 0:00:56]} a4 {[%emt 0:00:59]} 26. bxa4 {[%emt 0:00:49]} Nc7 {[%emt 0:02:52]} 27. Nd6 {[%emt 0:04:18]} Rd8 {[%emt 0:00:43]} 28. Nxc8 {[%emt 0:02:56]} Rdxc8 {[%emt 0:01:03]} 29. Rd7 {[%emt 0:02:16]} Na6 {[%emt 0:00:32]} 30. Bf1 {[%emt 0:06:40]} Rc7 {[%emt 0:00:42]} 31. Rxc7 {[%emt 0:04:29]} Nxc7 {[%emt 0:00:05]} 32. Rb1 {[%emt 0:00:12]} Ne6 {[%emt 0:01:19]} 33. a5 {[%emt 0:06:07]} Ra8 {[%emt 0:01:56]} 34. Rxb7 {[%emt 0:00:29]} Rxa5 {[%emt 0:00:29]} 35. Rb6 {[%emt 0:00:57]} Rxa3 {[%emt 0:01:15]} 36. Rxc6 {[%emt 0:00:07]} Ra7 {[%emt 0:01:43]} 37. g4 {[%emt 0:02:38]} Ng5 {[%emt 0:02:28]} 38. Kg2 {[%emt 0:00:28]} h6 {[%emt 0:01:30]} 39. h4 {[%emt 0:00:48]} Nh7 {[%emt 0:00:14]} 40. Bc4 {[%emt 0:00:00]} Nf6 {[%emt 0:00:00]} 41. f3 {[%emt 0:02:18]} Re7 {[%emt 0:09:17]} 42. Kf2 {[%emt 0:02:19]} Rb7 {[%emt 0:00:36]} 43. Kg3 {[%emt 0:03:37]} Re7 {[%emt 0:01:46]} 44. Kf4 {[%emt 0:01:57]} Ra7 {[%emt 0:04:55]} 45. e4 {[%emt 0:00:24]} Nh7 {[%emt 0:01:42]} 46. e5 {[%emt 0:03:49]} Nf8 {[%emt 0:05:09]} 47. Ke4 {[%emt 0:00:53]} g5 {[%emt 0:01:48]} 48. hxg5 {[%emt 0:04:09]} hxg5 {[%emt 0:00:01]} 49. Kf5 {[%emt 0:01:42]} Ng6 {[%emt 0:02:06]} 50. Rc5 {[%emt 0:05:10]} Nh4+ {[%emt 0:02:00]} 51. Ke4 {[%emt 0:04:07]} Ng6 {[%emt 0:00:22]} 52. e6 {[%emt 0:01:08]} fxe6 {[%emt 0:00:14]} 53. Rxg5 {[%emt 0:01:11]} Kf6 {[%emt 0:03:05]} 54. Rc5 {[%emt 0:00:09]} e5 {[%emt 0:00:48]} 55. Bb5 {[%emt 0:01:39]} Ra1 {[%emt 0:00:33]} 56. Rc8 {[%emt 0:02:19]} Re1+ {[%emt 0:00:54]} 57. Kd3 {[%emt 0:00:01]} Rb1 {[%emt 0:01:56]} 58. Bc4 {[%emt 0:00:49]} Rd1+ {[%emt 0:01:10]} 59. Ke2 {[%emt 0:00:31]} Rd4 {[%emt 0:00:26]} 60. Ke3 {[%emt 0:00:37]} Nf4 {[%emt 0:00:47]} 61. Rc6+ {[%emt 0:00:52]} Kg5 {[%emt 0:00:48]} 62. Rc5 {[%emt 0:00:16]} Kf6 {[%emt 0:00:40]} 63. Ba6 {[%emt 0:00:51]} Ra4 {[%emt 0:01:23]} 64. Rc6+ {[%emt 0:00:09]} Kg5 {[%emt 0:00:39]} 65. Bc4 {[%emt 0:00:02]} Ng6 {[%emt 0:01:16]} 66. Bd3 {[%emt 0:00:55]} Nf4 {[%emt 0:00:42]} 67. Be4 {[%emt 0:00:01]} Ra2 {[%emt 0:00:36]} 68. Rc2 {[%emt 0:01:19]} Rxc2 {[%emt 0:01:03]} 69. Bxc2 {[%emt 0:00:01]} Kf6 {[%emt 0:00:10]} 70. Ke4 {[%emt 0:00:09]} Ne6 {[%emt 0:00:10]} 71. Bd1 {[%emt 0:00:14]} Ng5+ {[%emt 0:00:06]} 72. Ke3 {[%emt 0:00:05]} Ne6 {[%emt 0:00:04]} 73. Bb3 {[%emt 0:00:03]} Nf4 {[%emt 0:00:05]} 74. Bc4 {[%emt 0:00:04]} Ng6 {[%emt 0:00:05]} 75. Ke4 {[%emt 0:00:10]} Nf4 {[%emt 0:00:05]} 76. Bb3 {[%emt 0:00:14]} Nh3 {[%emt 0:00:06]} 77. Bd5 {[%emt 0:00:11]} Ng5+ {[%emt 0:00:05]} 78. Ke3 {[%emt 0:00:02]} Nh3 {[%emt 0:00:05]} 79. Kd3 {[%emt 0:00:10]} Nf4+ {[%emt 0:00:05]} 80. Kc4 {[%emt 0:00:02]} Ng2 {[%emt 0:00:15]} 81. Be4 {[%emt 0:00:06]} Nf4 {[%emt 0:00:07]} 82. Kc5 {[%emt 0:00:04]} Ne6+ {[%emt 0:00:05]} 83. Kd6 {[%emt 0:00:03]} Ng5 {[%emt 0:00:04]} 84. Bd5 {[%emt 0:00:25]} Nh3 {[%emt 0:00:07]} 85. Kd7 {[%emt 0:00:10]} Nf4 {[%emt 0:00:10]} 86. Be4 {[%emt 0:00:06]} Ne6 {[%emt 0:00:08]} 87. Ke8 {[%emt 0:00:15]} Ng5 {[%emt 0:00:17]} 88. Kf8 {[%emt 0:00:36]} Ne6+ {[%emt 0:00:13]} 89. Kg8 {[%emt 0:00:05]} Ng5 {[%emt 0:00:08]} 90. Bd5 {[%emt 0:00:17]} Kg6 {[%emt 0:00:09]} 91. Bb7 {[%emt 0:00:09]} Kf6 {[%emt 0:00:08]} 92. Be4 {[%emt 0:00:16]} Ne6 {[%emt 0:00:45]} 93. Kh7 {[%emt 0:00:26]} Kg5 {[%emt 0:00:31]} 94. Bd5 {[%emt 0:00:07]} Nc7 {[%emt 0:00:51]} 95. Bc6 {[%emt 0:00:18]} Ne6 {[%emt 0:00:06]} 96. Kg8 {[%emt 0:00:14]} Kf6 {[%emt 0:00:16]} 97. Be4 {[%emt 0:00:09]} Ng5 {[%emt 0:00:27]} 98. Bd5 {[%emt 0:00:05]} Kg6 {[%emt 0:00:04]} 99. Bb7 {[%emt 0:00:35]} Kf6 {[%emt 0:00:15]} 100. Be4 {[%emt 0:00:08]} Ne6 {[%emt 0:00:52]} 101. Kh7 {[%emt 0:00:13]} Ng5+ {[%emt 0:00:24]} 102. Kh6 {[%emt 0:00:06]} Nh3 {[%emt 0:00:04]} 103. Bb7 {[%emt 0:00:10]} Ng5 {[%emt 0:00:07]} 104. Kh5 {[%emt 0:00:13]} Ne6 {[%emt 0:00:15]} 105. Kh4 {[%emt 0:00:24]} Kg6 {[%emt 0:00:36]} 106. Bd5 {[%emt 0:00:14]} Ng5 {[%emt 0:00:06]} 107. Bc6 {[%emt 0:00:46]} Kf6 {[%emt 0:00:12]} 108. Be4 {[%emt 0:00:11]} Ne6 {[%emt 0:00:07]} 109. Bd5 {[%emt 0:00:15]} Ng5 {[%emt 0:00:07]} 110. Kg3 {[%emt 0:00:07]} Kg6 {[%emt 0:00:10]} 111. Be4+ {[%emt 0:00:08]} Kf6 {[%emt 0:00:05]} 112. Bf5 {[%emt 0:00:04]} Nf7 {[%emt 0:00:07]} 113. Kf2 {[%emt 0:00:12]} Ng5 {[%emt 0:00:07]} 114. Ke3 {[%emt 0:00:02]} Nf7 {[%emt 0:00:07]} 115. Be4 {[%emt 0:00:11]} Ng5 {[%emt 0:00:06]} 116. Bd5 {[%emt 0:00:05]} Nh3 {[%emt 0:00:05]} 117. Bb3 {[%emt 0:00:18]} Nf4 {[%emt 0:00:06]} 118. Bd1 {[%emt 0:00:11]} Nh3 {[%emt 0:00:05]} 119. Be2 {[%emt 0:00:06]} Nf4 {[%emt 0:00:05]} 120. Bc4 {[%emt 0:00:07]} Nh3 {[%emt 0:00:25]} 121. Ba2 {[%emt 0:00:03]} 1/2-1/2

[Event "RUDAR 1 IM 2022"]
[Site "Pozarevac"]
[Date "2022.04.01"]
[Round "9.3"]
[White "Trifunovic, Miroljub"]
[Black "Andreev, Konstantin"]
[Result "0-1"]
[ECO "E09"]
[WhiteElo "2144"]
[BlackElo "2238"]
[Annotator "NA"]
[PlyCount "75"]
[EventDate "2022.03.27"]
[EventType "tourn"]
[EventCountry "SRB"]
[SourceTitle "playchess.com"]
[Source "ChessBase"]
[SourceQuality "1"]
[TimeControl "40/5400+30:900+30"]

1. Nf3 {[%emt 0:01:05]} Nf6 {[%emt 0:00:25]} 2. g3 {[%emt 0:00:28]} d5 {[%emt 1:31:05]} 3. Bg2 {[%emt 0:01:03]} e6 {[%emt 0:00:00]} 4. O-O {[%emt 0:01:22]} Be7 {[%emt 0:00:00]} 5. d4 {[%emt 0:02:04]} O-O {[%emt 0:00:00]} 6. c4 {[%emt 0:01:12]} c6 {[%emt 0:00:00]} 7. Qc2 {[%emt 0:05:20]} b6 {[%emt 0:00:00]} 8. Rd1 {[%emt 0:04:08]} Ba6 {[%emt 0:00:00]} 9. b3 {[%emt 0:10:48]} Nbd7 {[%emt 0:00:00]} 10. Nbd2 {[%emt 0:36:04]} c5 {[%emt 0:00:00]} 11. Ba3 {[%emt 0:15:36]} Rc8 {[%emt 0:00:00]} 12. e3 {[%emt 0:06:18]} b5 {[%emt 0:00:00]} 13. cxb5 {[%emt 0:05:34]} cxd4 {[%emt 0:00:00]} 14. Bxe7 {[%emt 0:00:32]} Qxe7 {[%emt 0:00:00]} 15. Qb2 {[%emt 0:00:58]} dxe3 {[%emt 0:00:00]} 16. bxa6 {[%emt 0:00:25]} exd2 {[%emt 0:00:00]} 17. Nxd2 {[%emt 0:01:13]} Nc5 {[%emt 0:00:00]} 18. Bf1 {[%emt 0:00:37]} Qd6 {[%emt 0:00:00]} 19. Qa3 {[%emt 0:01:36]} Qb6 {[%emt 0:00:00]} 20. b4 {[%emt 0:01:09]} Nce4 {[%emt 0:00:00]} 21. Nxe4 {[%emt 0:00:05]} Nxe4 {[%emt 0:00:00]} 22. Qb2 {[%emt 0:00:18]} Nc3 {[%emt 0:00:00]} 23. Rd2 {[%emt 0:00:48]} Ne4 {[%emt 0:00:00]} 24. Rdd1 {[%emt 0:00:20]} Rb8 {[%emt 0:00:00]} 25. a3 {[%emt 0:00:24]} Rfd8 {[%emt 0:00:00]} 26. Rac1 {[%emt 0:03:13]} d4 {[%emt 0:00:00]} 27. Bd3 {[%emt 0:00:19]} Nc3 {[%emt 0:00:00]} 28. Re1 {[%emt 0:00:14]} Qd6 {[%emt 0:00:38]} 29. Qd2 {[%emt 0:00:25]} e5 {[%emt 0:02:45]} 30. f4 {[%emt 0:00:43]} f6 {[%emt 0:01:12]} 31. fxe5 {[%emt 0:00:09]} fxe5 {[%emt 0:00:10]} 32. Qg5 {[%emt 0:01:05]} Re8 {[%emt 0:00:10]} 33. Qg4 {[%emt 0:00:40]} Rbd8 {[%emt 0:03:23]} 34. Rc2 {[%emt 0:00:36]} e4 {[%emt 0:02:42]} 35. Bc4+ {[%emt 0:00:33]} Kh8 {[%emt 0:00:09]} 36. Bf1 {[%emt 0:00:29]} d3 {[%emt 0:00:51]} 37. Rd2 {[%emt 0:00:02]} Qxa6 {[%emt 0:01:23]} 38. Qf5 {[%emt 0:00:36]} 0-1

[Event "RUDAR 1 IM 2022"]
[Site "Pozarevac"]
[Date "2022.04.01"]
[Round "9.4"]
[White "Anishka Vikram"]
[Black "Savitha Shri B"]
[Result "0-1"]
[ECO "E94"]
[WhiteElo "2000"]
[BlackElo "2257"]
[Annotator "NA"]
[PlyCount "66"]
[EventDate "2022.03.27"]
[EventType "tourn"]
[EventCountry "SRB"]
[SourceTitle "playchess.com"]
[Source "ChessBase"]
[SourceQuality "1"]
[TimeControl "40/5400+30:900+30"]

1. d4 {[%emt 0:00:02]} Nf6 {[%emt 0:01:43]} 2. c4 {[%emt 0:00:07]} g6 {[%emt 0:00:07]} 3. Nc3 {[%emt 0:00:05]} Bg7 {[%emt 0:00:16]} 4. e4 {[%emt 0:00:07]} d6 {[%emt 0:00:05]} 5. Nf3 {[%emt 0:00:06]} O-O {[%emt 0:00:11]} 6. Be2 {[%emt 0:00:03]} Nbd7 {[%emt 0:00:07]} 7. O-O {[%emt 0:00:14]} e5 {[%emt 0:00:05]} 8. d5 {[%emt 0:00:11]} Nc5 {[%emt 0:00:06]} 9. Nd2 {[%emt 0:00:20]} a5 {[%emt 0:01:47]} 10. b3 {[%emt 0:00:09]} Bh6 {[%emt 0:01:14]} 11. f3 {[%emt 0:04:43]} Be3+ {[%emt 0:01:50]} 12. Kh1 {[%emt 0:00:09]} Nh5 {[%emt 0:00:48]} 13. Qe1 {[%emt 0:11:31]} Qg5 {[%emt 0:08:42]} 14. Nd1 {[%emt 0:11:42]} Bd4 {[%emt 0:02:00]} 15. Rb1 {[%emt 0:07:51]} Nf4 {[%emt 0:03:24]} 16. g4 {[%emt 0:03:14]} h5 {[%emt 0:03:46]} 17. Bb2 {[%emt 0:12:50]} Nfd3 {[%emt 0:12:23]} 18. Bxd3 {[%emt 0:30:53]} Nxd3 {[%emt 0:00:07]} 19. Qe2 {[%emt 0:00:11]} Nxb2 {[%emt 0:01:40]} 20. Nxb2 {[%emt 0:00:08]} Bc3 {[%emt 0:01:39]} 21. f4 {[%emt 0:03:40]} Qxg4 {[%emt 0:01:41]} 22. Qd3 {[%emt 0:00:48]} Bxb2 {[%emt 0:02:01]} 23. Rxb2 {[%emt 0:00:06]} exf4 {[%emt 0:04:46]} 24. Rg1 {[%emt 0:00:41]} Qh3 {[%emt 0:00:58]} 25. Qd4 {[%emt 0:02:33]} Bg4 {[%emt 0:01:03]} 26. Qf6 {[%emt 0:03:55]} Qe3 {[%emt 0:05:34]} 27. Rf1 {[%emt 0:03:47]} f3 {[%emt 0:03:02]} 28. Nxf3 {[%emt 0:00:51]} Qxe4 {[%emt 0:00:23]} 29. Rbf2 {[%emt 0:03:01]} Rae8 {[%emt 0:00:32]} 30. Rg1 {[%emt 0:00:22]} Re5 {[%emt 0:00:49]} 31. Rgg2 {[%emt 0:00:36]} Rf5 {[%emt 0:00:46]} 32. Qd4 {[%emt 0:00:30]} Bxf3 {[%emt 0:00:18]} 33. Qxe4 {[%emt 0:00:09]} Bxe4 {[%emt 0:00:04]} 0-1